Cogmind - Beta 13 *** ADVENTURER MODE // 2024.04.06 @ 16:04:45 Player: kripton Result: Destroyed by S-27 Virus with Autogun Performance ------------- Evolutions (3) 1500 Regions Visited (8) 1600 Robots Destroyed (41) 205 Value Destroyed (1351) 1351 Prototype IDs (0) 0 Alien Tech Used (0) 0 Bonus (200) 200 TOTAL SCORE: 4856 Bonus ------- Pacifist 200 Cogmind --------- Core Integrity 0/700 Matter 294/300 Energy 100/100 System Corruption 16% Temperature Cool (0) Movement Core (400) Ox7 Location -7/Lower Caves Parts ------- > --- POWER (1) -------- (None) > --- PROPULSION (3) --- (None) > --- UTILITY (6) ------ Large Storage Unit ECM Suite > --- WEAPON (3) ------- (None) > --- INVENTORY (15) --- Improved Deuterium Engine ECM Suite Long-range Tractor Beam Peak State ------------ > --- POWER ------------ Improved Deuterium Engine > --- PROPULSION ------- Gravmag System Gravmag System Gravmag System > --- UTILITY ---------- Improved Cooling System Large Storage Unit ECM Suite Core Shielding Propulsion Shielding Hacking Suite > --- WEAPON ----------- Minigun Railgun Rocket Launcher > --- INVENTORY -------- Improved Deuterium Engine Improved Deuterium Engine Gravmag System ECM Suite Improved Medium Armor Plating Long-range Tractor Beam [Rating: 41] Favorites ----------- Power Improved Deuterium Engine Engine Improved Deuterium Engine Power Core Light Nuclear Core Propulsion Improved Aluminum Leg Leg Improved Aluminum Leg Hover Unit Gravmag System Utility Large Storage Unit Device ECM Suite Storage Large Storage Unit Processor Improved Targeting Computer Hackware Hacking Suite Protection Hardened Light Armor Plating Weapon Light Assault Rifle Energy Gun Particle Gun Ballistic Gun Light Assault Rifle Launcher Heavy Rocket Launcher Slashing Weapon Chainsword Build | -11 -10 -9 -9 -8 -7 -7 -7 -7 ------- Run | Yrd Mat Mat Min Mat Fac Was Fac Low Slots Evolved 6 | . . 2 . 2 2 . . . Power . | . . . . . . . . . Propulsion 1 | . . . . 1 . . . . Utility 4 | . . 1 . 1 2 . . . Weapon 1 | . . 1 . . . . . . Parts Attached 64 | 4 5 7 5 10 14 7 11 1 Power 7 | 1 . 2 . 1 1 1 . 1 Engine 5 | 1 . 2 . . 1 1 . . Core 2 | . . . . 1 . . . 1 Reactor . | . . . . . . . . . Propulsion 14 | 2 . 1 . 4 3 . 4 . Treads . | . . . . . . . . . Leg 10 | 2 . 1 . 4 . . 3 . Wheel . | . . . . . . . . . Hover 4 | . . . . . 3 . 1 . Flight . | . . . . . . . . . Utility 23 | 1 1 3 2 3 6 3 4 . Device 9 | . 1 2 . . 3 1 2 . Storage 3 | 1 . . 1 1 . . . . Processor 5 | . . 1 1 . 2 . 1 . Hackware 1 | . . . . 1 . . . . Protection 5 | . . . . 1 1 2 1 . Artifact . | . . . . . . . . . Weapon 20 | . 4 1 3 2 4 3 3 . Energy Gun 4 | . 2 . 1 . 1 . . . Energy Cannon . | . . . . . . . . . Ballistic Gun 7 | . 1 . 2 2 . 2 . . Ballistic Cannon . | . . . . . . . . . Launcher 6 | . 1 1 . . 3 1 . . Special Weapon . | . . . . . . . . . Impact Weapon . | . . . . . . . . . Slashing Weapon 3 | . . . . . . . 3 . Piercing Weapon . | . . . . . . . . . Special Melee Weapon . | . . . . . . . . . Unidentified Prototypes . | . . . . . . . . . Parts Lost 25 | . . 1 1 . 10 . 3 10 Power 2 | . . . . . . . . 2 Propulsion 7 | . . . . . 3 . 1 3 Utility 10 | . . 1 . . 4 . 2 3 Weapon 6 | . . . 1 . 3 . . 2 Highest Loss Streak 10 | . . 1 1 . 6 . 3 10 To Critical Strikes . | . . . . . . . . . Average Slot Usage (%) 94 | . 93 96 99 100 93 70 96 82 Engine 7 | . 14 11 11 2 6 7 7 4 Core 1 | . . . . 6 . . . 2 Leg 20 | . 28 22 22 27 19 . 12 16 Hover 2 | . . . . . 1 23 9 . Device 8 | . 8 14 11 . 9 9 10 13 Storage 8 | . 14 11 11 9 7 7 7 7 Processor 6 | . . 4 11 9 5 . 4 7 Hackware 4 | . . . . 8 7 7 2 . Protection 8 | . . . . 9 12 5 19 12 Energy Gun 3 | . 7 11 7 4 1 . . . Ballistic Gun 11 | . 14 11 20 22 6 6 2 . Launcher 6 | . 6 11 3 . 11 2 1 . Slashing Weapon 2 | . . . . . . . 18 16 Naked Turns . | . . . . . . . . . Heaviest Build 55 | 8 14 17 20 35 55 49 54 54 Greatest Support 46 | 20 20 23 23 39 39 27 46 46 Greatest Overweight (x) 10 | . . . . . 10 1 4 4 Average Overweight (x) . | . . . . . 1 1 1 1 Largest Inventory Capacity 15 | 8 8 8 10 15 15 15 15 15 Average Capacity 12 | 7 8 8 8 12 15 15 15 15 Most Carried 15 | 6 8 8 10 14 15 12 8 4 Average Carried 9 | 4 6 7 8 10 14 8 4 3 Final Capacity 15 | 8 8 8 10 15 15 15 15 15 Final Carried 13 | 6 8 8 10 13 11 5 4 3 Class Distribution -------------------- 29% | Hacker-Tank 22% | Gunner 13% | Hacker-Mutant 13% | Hacker-Gunner 9% | Mutant 9% | Gladiator Dominant Class ---------------- Mutant | -10/Materials Gunner | -9/Materials Gunner | -9/Mines Hacker-Gunner | -8/Materials Hacker-Tank | -7/Factory Hacker-Mutant | -7/Waste Gladiator | -7/Factory Mutant | -7/Lower Caves Resources | -11 -10 -9 -9 -8 -7 -7 -7 -7 ----------- Run | Yrd Mat Mat Min Mat Fac Was Fac Low Matter Collected 1195 | 217 . 161 115 170 81 296 155 . Remotely . | . . . . . . . . . Salvage Created 1352 | . . 320 202 320 252 . 196 62 Parts 71 | . . 13 16 15 16 . 10 1 Haulers Intercepted 1 | . . . . . 1 . . . Recyclers Shooed . | . . . . . . . . . Parts Field Recycled . | . . . . . . . . . Retrieved Matter . | . . . . . . . . . Parts Self-Destructed 1 | . . . . . . . . 1 Prevented . | . . . . . . . . . Kills | -11 -10 -9 -9 -8 -7 -7 -7 -7 ------- Run | Yrd Mat Mat Min Mat Fac Was Fac Low Combat Hostiles Destroyed 34 | . . 7 9 6 7 . 4 1 Melee 5 | . . . . . . . 4 1 Guns 21 | . . 7 6 6 2 . . . AOE 8 | . . . 3 . 5 . . . Classes Destroyed 11 | . . 2 2 1 4 . 1 1 Worker 4 | . . . 1 . 3 . . . Hauler 1 | . . . . . 1 . . . Recycler 1 | . . . . . 1 . . . Operator 1 | . . . . 1 . . . . Swarmer 7 | . . . 6 . . . 1 . Grunt 19 | . . 5 3 6 4 . 1 . Brawler 1 | . . . . . . . 1 . Duelist 1 | . . . . . . . . 1 Sentry 4 | . . 2 . . 1 . 1 . Hunter 1 | . . . . . 1 . . . Programmer 1 | . . . . . 1 . . . Best Kill Streak 4 | . . 3 4 2 4 . 3 1 Combat Bots Only 3 | . . 3 3 2 3 . 3 1 Max Kills in Single Turn 2 | . . 1 2 1 2 . 1 1 Gunslinging . | . . . . . . . . . Exploded 2 | . . . 2 . 1 . . . Melee 1 | . . . . . . . 1 1 Uniques/NPCs Destroyed . | . . . . . . . . . Combat | -11 -10 -9 -9 -8 -7 -7 -7 -7 -------- Run | Yrd Mat Mat Min Mat Fac Was Fac Low Hostile Shots Fired 430 | . 5 32 27 25 181 . 73 87 Missed 124 | . 3 11 3 5 65 . 22 15 Damage Taken 4002 | . 12 222 269 242 1298 . 493 1466 Core 869 | . 8 20 95 38 214 . 54 440 Absorbed by Shields . | . . . . . . . . . Redirected to Shielding 180 | . . . . . 109 . 43 28 Ignored by Resistances 1085 | . 4 66 82 73 315 . 147 398 Core Remaining (%) 90 | 100 96 . 71 93 . . . . Volleys Fired 84 | . . 23 21 21 19 . . . Largest 3 | . . 2 3 3 3 . . . Hottest 128 | . . 70 105 105 128 . . . Shots Fired 183 | . . 46 43 63 31 . . . Gun 160 | . . 46 39 63 12 . . . Cannon . | . . . . . . . . . Launcher 23 | . . . 4 . 19 . . . Special . | . . . . . . . . . Kinetic 109 | . . 23 32 50 4 . . . Thermal 43 | . . 23 7 13 . . . . Explosive 23 | . . . 4 . 19 . . . Electromagnetic 8 | . . . . . 8 . . . Robot Hit Streak 42 | . . 36 18 35 42 . . . Robot Miss Streak 1 | . . 1 1 1 1 . . . Penetration Max . | . . . . . . . . . Secondary Targets 1 | . . 1 . . . . . . Max Gunslinging Chain 1 | . . 1 . . . . . . Shots Hit Robots 168 | . . 42 32 51 24 . 14 5 Core Hits 83 | . . 16 17 21 20 . 6 3 Critical Kills 1 | . . . . 1 . . . . Critical Parts Destroyed 1 | . . . . 1 . . . . Critical Strikes 6 | . . 1 . 3 . . 1 1 Burn 2 | . . 1 . 1 . . . . Destroy 2 | . . . . 2 . . . . Sever 2 | . . . . . . . 1 1 Melee Attacks 23 | . . . . . . . 17 6 Impact . | . . . . . . . . . Slashing 23 | . . . . . . . 17 6 Piercing . | . . . . . . . . . Sneak Attacks . | . . . . . . . . . Combat Hostiles . | . . . . . . . . . Follow-up Attacks 4 | . . . . . . . 2 2 Damage Inflicted 3725 | . . 443 498 569 1597 . 457 161 Guns 1416 | . . 441 288 555 132 . . . Cannons . | . . . . . . . . . Explosions 1653 | . . . 206 . 1447 . . . Melee 616 | . . . . . . . 457 159 Ramming 40 | . . 2 4 14 18 . . 2 Kinetic 803 | . . 156 195 393 59 . . . Thermal 607 | . . 285 93 162 67 . . . Explosive 1586 | . . . 206 . 1380 . . . Electromagnetic 73 | . . . . . 73 . . . Impact . | . . . . . . . . . Slashing 616 | . . . . . . . 457 159 Piercing . | . . . . . . . . . Highest Corruption 16 | . . . . . 12 12 16 16 Average Corruption 13 | . . . . . 11 12 14 16 Corruption Purged . | . . . . . . . . . Corruption Blocked . | . . . . . . . . . Effects 44 | . . . . . 15 6 18 5 Message Errors 15 | . . . . . 4 3 6 2 Matter Fused 8 | . . . . . 2 . 3 3 Heat Flow Errors 4 | . . . . . 3 1 . . Energy Discharges 3 | . . . . . 1 1 1 . Parts Rejected 1 | . . . . . 1 . . . Data Loss (minor) 8 | . . . . . 2 1 5 . Data Loss (major) 1 | . . . . . . . 1 . Misfires 1 | . . . . . 1 . . . Alerts 1 | . . . . . . . 1 . Misdirections 2 | . . . . . 1 . 1 . Overload Shots . | . . . . . . . . . Overflow Damage 34 | . . . . . 34 . . . Projectiles . | . . . . . . . . . Explosions 34 | . . . . . 34 . . . Melee . | . . . . . . . . . Knockbacks 1 | . . . . . 1 . . . Impact 1 | . . . . . 1 . . . Kinetic . | . . . . . . . . . Secondary . | . . . . . . . . . Self-Inflicted Damage 150 | . . . 60 . 90 . . . Shots 6 | . . . 4 . 2 . . . Rammed 4 | . . . . . 1 . . 3 Targets Rammed 10 | . . 1 2 3 1 . . 3 Kicked 6 | . . 1 2 3 . . . . Crushed . | . . . . . . . . . Highest Temperature 419 | . . 141 221 419 207 139 5 . Average Temperature 84 | . . 73 61 123 55 91 5 . Received Heat Transfer 1248 | . . 138 93 198 399 . 267 153 Effects 1 | . . . 1 . . . . . Energy Bleed 1 | . . . 1 . . . . . Siege Activations . | . . . . . . . . . Robots Corrupted . | . . . . . . . . . Combat Hostiles . | . . . . . . . . . Parts Fried . | . . . . . . . . . Impact Corruptions . | . . . . . . . . . Robots Melted . | . . . . . . . . . Combat Hostiles . | . . . . . . . . . Parts Melted 5 | . . 4 . 1 . . . . Heat Transferred 1641 | . . 925 222 444 50 . . . Parts Sabotaged . | . . . . . . . . . Parts Stolen . | . . . . . . . . . Parts Stripped . | . . . . . . . . . Power Chain Reactions 1 | . . . . . 1 . . . Alert | -11 -10 -9 -9 -8 -7 -7 -7 -7 ------- Run | Yrd Mat Mat Min Mat Fac Was Fac Low Peak Influence 274 | . 15 225 274 100 248 4 110 . Initial 74 | . . 5 74 52 27 4 . . Average 75 | . 4 135 174 73 67 3 23 . Maximum Alert Level 1 | . . 1 1 . 1 . . . Low Security (%) 86 | 100 100 61 55 100 90 100 100 . Level 1 13 | . . 38 44 . 9 . . . Level 2 . | . . . . . . . . . Level 3 . | . . . . . . . . . Level 4 . | . . . . . . . . . Level 5 . | . . . . . . . . . High Security . | . . . . . . . . . Max Security . | . . . . . . . . . Squads Dispatched 11 | . . . . 5 5 . 1 . Investigation 2 | . . . . 2 . . . . Extermination 2 | . . . . . 2 . . . Reinforcement 6 | . . . . 2 3 . 1 . Assault . | . . . . . . . . . Garrison 1 | . . . . 1 . . . . Intercept . | . . . . . . . . . Searches Triggered . | . . . . . . . . . Construction Impeded 2 | . . . . 1 1 . . . Haulers Reinforced 2 | . . . . . 2 . . . Active Scanning Responses . | . . . . . . . . . Cargo Convoy Interrupts . | . . . . . . . . . Stealth | -11 -10 -9 -9 -8 -7 -7 -7 -7 --------- Run | Yrd Mat Mat Min Mat Fac Was Fac Low Distress Signals 8 | . 1 4 . 2 1 . . . Communications Jammed . | . . . . . . . . . Distress Signals . | . . . . . . . . . Times Spotted 73 | . 4 14 18 7 14 1 8 7 Peak Tracking Total 7 | . 2 6 3 3 4 1 3 7 Tactical Retreats 13 | . 1 4 5 1 1 . . 1 Traps | -11 -10 -9 -9 -8 -7 -7 -7 -7 ------- Run | Yrd Mat Mat Min Mat Fac Was Fac Low Traps Triggered 3 | . . . . . 2 . 1 . Indirectly . | . . . . . . . . . Trap Hack Attempts . | . . . . . . . . . Triggered . | . . . . . . . . . Disarmed 4 | . 4 . . . . . . . Reprogrammed 4 | . . . . 4 . . . . Reused . | . . . . . . . . . Traps Extracted . | . . . . . . . . . Installed . | . . . . . . . . . Triggered . | . . . . . . . . . Machines | -11 -10 -9 -9 -8 -7 -7 -7 -7 ---------- Run | Yrd Mat Mat Min Mat Fac Was Fac Low Machines Disabled 1 | . . . . . 1 . . . Max in Single Turn 1 | . . . . . 1 . . . Machines Repaired . | . . . . . . . . . Machines Dismantled . | . . . . . . . . . Machines Sabotaged . | . . . . . . . . . Overloaded Fab Kills . | . . . . . . . . . Hacking | -11 -10 -9 -9 -8 -7 -7 -7 -7 --------- Run | Yrd Mat Mat Min Mat Fac Was Fac Low Machines Accessed 4 | . 1 . . 3 . . . . Terminals 4 | . 1 . . 3 . . . . Fabricators . | . . . . . . . . . Repair Stations . | . . . . . . . . . Recycling Units . | . . . . . . . . . Scanalyzers . | . . . . . . . . . Garrison Access . | . . . . . . . . . Total Hacks 15 | . 4 . . 11 . . . . Successful 10 | . 2 . . 8 . . . . Failed 4 | . 2 . . 2 . . . . Catastrophic 1 | . . . . 1 . . . . Database Lockouts 1 | . . . . 1 . . . . Manual . | . . . . . . . . . Terminals 15 | . 4 . . 11 . . . . Fabricators . | . . . . . . . . . Repair Stations . | . . . . . . . . . Recycling Units . | . . . . . . . . . Scanalyzers . | . . . . . . . . . Garrison Access . | . . . . . . . . . Terminal Hacks 10 | . 2 . . 8 . . . . Record 4 | . . . . 4 . . . . Unreport Threat 1 | . . . . 1 . . . . Locate Traps 1 | . 1 . . . . . . . Disarm Traps 1 | . 1 . . . . . . . Reprogram Traps 1 | . . . . 1 . . . . Maintenance Status 1 | . . . . 1 . . . . Zone Layout 1 | . . . . 1 . . . . Fabricator Hacks . | . . . . . . . . . Repair Station Hacks . | . . . . . . . . . Recycling Unit Hacks . | . . . . . . . . . Scanalyzer . | . . . . . . . . . Garrison Access Hacks . | . . . . . . . . . Unauthorized Hacks . | . . . . . . . . . Terminals . | . . . . . . . . . Fabricators . | . . . . . . . . . Repair Stations . | . . . . . . . . . Recycling Units . | . . . . . . . . . Scanalyzers . | . . . . . . . . . Garrison Access . | . . . . . . . . . Data Cores Recovered 1 | . . . . 1 . . . . Used . | . . . . . . . . . Hacking Detections 3 | . 1 . . 2 . . . . Full Trace Events 2 | . . . . 2 . . . . Feedback Events . | . . . . . . . . . Feedback Blocked . | . . . . . . . . . Robot Schematics Acquired . | . . . . . . . . . Robots Built . | . . . . . . . . . Authchips . | . . . . . . . . . Time . | . . . . . . . . . Total Robot Build Rating . | . . . . . . . . . Part Schematics Acquired . | . . . . . . . . . Parts Built . | . . . . . . . . . Authchips . | . . . . . . . . . Time . | . . . . . . . . . Total Part Build Rating . | . . . . . . . . . Parts Repaired . | . . . . . . . . . Time . | . . . . . . . . . Parts Recycled . | . . . . . . . . . Recycled Matter . | . . . . . . . . . Retrieved Matter . | . . . . . . . . . Retrieved Components . | . . . . . . . . . Parts Scanalyzed . | . . . . . . . . . Part Schematics Acquired . | . . . . . . . . . Parts Damaged . | . . . . . . . . . Bothacking | -11 -10 -9 -9 -8 -7 -7 -7 -7 ------------ Run | Yrd Mat Mat Min Mat Fac Was Fac Low Used RIF Installer . | . . . . . . . . . Robots Hacked . | . . . . . . . . . Non-combat . | . . . . . . . . . Combat . | . . . . . . . . . Robot Hacks Applied . | . . . . . . . . . Relay Couplers Released . | . . . . . . . . . Fabnet Peak Effective % . | . . . . . . . . . Robots Rewired . | . . . . . . . . . Allies Hacked . | . . . . . . . . . Hacks Repelled . | . . . . . . . . . Allies | -11 -10 -9 -9 -8 -7 -7 -7 -7 -------- Run | Yrd Mat Mat Min Mat Fac Was Fac Low Total Allies 1 | . . . . . . 1 . . Largest Group 1 | . . . . . . 1 . . Highest-Rated Group 31 | . . . . . . 31 . . Highest-Rated Ally 31 | . . . . . . 31 . . Total Orders . | . . . . . . . . . Ally Attacks 2 | . . . . . . 2 . . Total Damage 43 | . . . . . . 43 . . Kills . | . . . . . . . . . Allies Corrupted . | . . . . . . . . . Allies Melted . | . . . . . . . . . Intel | -11 -10 -9 -9 -8 -7 -7 -7 -7 ------- Run | Yrd Mat Mat Min Mat Fac Was Fac Low Robot Analysis Total . | . . . . . . . . . Derelict Logs Recovered . | . . . . . . . . . Drone Launches . | . . . . . . . . . Drone Recoveries . | . . . . . . . . . Exploration | -11 -10 -9 -9 -8 -7 -7 -7 -7 ------------- Run | Yrd Mat Mat Min Mat Fac Was Fac Low Turns Passed 3828 | 80 243 393 495 577 1297 148 519 76 Spaces Moved 2196 | 67 162 209 314 362 646 125 286 25 Core 20 | 19 . . . . 1 . . . Treads . | . . . . . . . . . Legs 1829 | 48 162 209 314 362 583 . 126 25 Wheels . | . . . . . . . . . Hover 347 | . . . . . 62 125 160 . Flight . | . . . . . . . . . Fastest Speed 50 | 50 120 120 120 120 112 112 112 190 Average Speed 142 | 100 120 120 120 120 183 112 153 204 Slowest Speed 550 | 120 120 120 120 120 550 112 400 400 Overloaded Moves . | . . . . . . . . . Propulsion Burnouts . | . . . . . . . . . Robots Hopped . | . . . . . . . . . Cave-ins Triggered 1 | . . . . . 1 . . . Exploration Rate (%) 23 | 4 21 20 33 22 15 79 6 7 Regions Visited 8 Branch Regions 2 Pre-discovered Areas . | . . . . . . . . . Known Exits Taken . | . . . . . . . . . Unknown Exits Taken 6 | 1 1 1 1 1 . . 1 . Scrap Searched 2 | . . . 2 . . . . . Spaces Dug 17 | . . . . . 17 . . . Terrain Destroyed 212 | . . . 43 . 169 . . . Melee . | . . . . . . . . . Projectile . | . . . . . . . . . AOE 212 | . . . 43 . 169 . . . Terrain Rammed . | . . . . . . . . . Walls Destroyed . | . . . . . . . . . Machines Disabled . | . . . . . . . . . Actions | -11 -10 -9 -9 -8 -7 -7 -7 -7 --------- Run | Yrd Mat Mat Min Mat Fac Was Fac Low Total 2721 | 80 211 309 400 468 736 133 350 34 Wait 243 | . 37 61 43 50 27 . 24 1 Move 2189 | 66 161 208 313 361 646 124 285 25 Hop . | . . . . . . . . . Pick Up 73 | 10 6 6 10 14 17 1 9 . Fast Attach . | . . . . . . . . . Attach 42 | 4 4 3 2 3 9 6 10 1 Detach 4 | . 1 . . . 2 . 1 . Swap 22 | . 1 4 3 7 5 1 1 . Drop 37 | . 1 3 6 9 10 1 7 . Fire 84 | . . 23 21 21 19 . . . Melee 17 | . . . . . . . 13 4 Ram 4 | . . . . . 1 . . 3 Kick 6 | . . 1 2 3 . . . . Crush . | . . . . . . . . . Escape Stasis . | . . . . . . . . . Rewire . | . . . . . . . . . Trap . | . . . . . . . . . Miscellaneous . | . . . . . . . . . Route ------- -11/Scrapyard -10/Materials -9/Materials -9/Mines -8/Materials -7/Factory -7/Waste -7/Factory -7/Lower Caves History --------- Turn | Location | Event 4 | -11/Scrapyard | Discovered new exit (range 15) 81 | -11/Scrapyard | Entered Materials 309 | -10/Materials | Build established: Mutant 313 | -10/Materials | Discovered new exit (range 9) 324 | -10/Materials | Entered another Materials area 324 | -9/Materials | Evolved 2 slots: Utility x1, Weapon x1 687 | -9/Materials | Discovered new exit (range 15) 717 | -9/Materials | Entered Mines 850 | -9/Mines | Build established: Gunner 1111 | -9/Mines | Joined a pair of Derelicts in attacking an 0b10 outpost 1193 | -9/Mines | Discovered new exit (range 8) 1212 | -9/Mines | Entered Materials 1212 | -8/Materials | Evolved 2 slots: Propulsion x1, Utility x1 1237 | -8/Materials | Garrison activated, responded to threat 1425 | -8/Materials | Central database locked down 1575 | -8/Materials | Build established: Hacker-Gunner 1709 | -8/Materials | Discovered new exit (range 14) 1789 | -8/Materials | Entered Factory 1789 | -7/Factory | Evolved 2 slots: Utility x2 2088 | -7/Factory | Build established: Hacker-Tank 2759 | -7/Factory | Crushed by falling debris 2759 | -7/Factory | System corruption reached 10% 2790 | -7/Factory | Lost 4 parts (1n2u1w) 3037 | -7/Factory | Lost 6 parts (2n2u2w) 3056 | -7/Factory | Build established: Hacker-Mutant 3086 | -7/Factory | Sucked down chute 3086 | -7/Factory | Entered Waste 3086 | -7/Waste | The area was eerily silent 3087 | -7/Waste | Met a frightened Derelict 3220 | -7/Waste | A Compactor rumbled back to life 3220 | -7/Waste | Spotted C-40 Crusher 3221 | -7/Waste | Discovered new exit (range 11) 3234 | -7/Waste | Entered Factory 3461 | -7/Factory | Lost 3 parts (1n2u) 3732 | -7/Factory | Discovered new exit (range 11) 3743 | -7/Factory | Build established: Gladiator 3753 | -7/Factory | Entered Lower Caves 3773 | -7/Lower Caves | Attracted the attention of an 0b10 outpost 3816 | -7/Lower Caves | Core integrity fell below 50% 3823 | -7/Lower Caves | Core integrity fell below 20% 3829 | -7/Lower Caves | Destroyed by S-27 Virus with Autogun Last Messages --------------- 03803_ L#INB3 5FAMFNM :UJMJH3 :5264U4B 03803_ Microactuators fries itself beyond repair. 03804_ Chainsword destroyed. 03806_ Imp. Carbon-fiber Leg destroyed. 03807_ Slug penetrates Wall. 03807_ Knocked back. 03812_ Imp. Medium Armor Plating destroyed. 03814_ Force Booster destroyed. 03815_ Penetrated by Slug. 03815_ Aluminum Leg destroyed. 03816_ Chainsword severed. 03816_ Lgt. Nuclear Core destroyed. 03816_ Slammed into L-41 Fighter. 03818_ System corrupted: Matter fused (-10). 03818_ Core Shielding destroyed. 03818_ Penetrated by Slug. 03820_ Slammed into L-41 Fighter. 03824_ Melee Analysis Suite severed. 03825_ Penetrated by Slug. 03828_ Slug penetrates L-41 Fighter. Map ----- +----------------------------------------------------+ | ?????????????????????????????????????????????????? | | ?????????????????????????????????????????????????? | | ?????????????????????????????????????????????????? | | ?????????????????????????????????????????????????? | | ?????????????????????????????????????????????????? | | ?????????????????????????????????????????????????? | | ?????????????????????????????????????????????????? | | ?????????????????????????????????????????????????? | | ?????????????????????????????????????????????????? | | ?????????????????????????????????????????????????? | | ?????????????????????????????????????????????????? | | ?????????????????????????????????????????????????? | | ?????????????????????????????????????????????????? | | ?????????????????????????????????????????????????? | | ??????????????????????????????????#??????????????? | | ????????????????????????????????? #??????????????? | | ????????????????????????????????? #??????????????? | | ???????????????????????????????? #??????????????? | | ???????????????????????????????? #??????????????? | | ???????????????????????????????# #??????????????? | | ???????????????????????###????? #??? ??????????? | | ????????????????# ????## #????# #??? ###????????? | | ????????????????# #### ##??? #?? ????????? | | ???????? # ##?# #?# ####??????? | | ???????? /bl ## ## #??????? | | ???????? ## s@l #?????? | | ???????? ?????## Yg* #?????? | | ????????? ??????????# ## #?????? | | ???????????????????????# %## ?????? | | ???????????????????????## ????? | | ????????????????????????# ????? | | ????????????????????????## !%! ????? | | ?????????????????????????### ## ### ?????? | | ???????????????????????????# ## ##??? ? ??????? | | ??????????????????????????## # #????? ????????? | | ??????????????????????????# ##?????????????? | | ??????????????????????????# #?????????????? | | ??????????????????????????# #?????????????? | | ???????????????????? ## #?????????????? | | ???????????????????# ##### ##?????????????? | | ???????????????????#######????#####??????????????? | | ?????????????????????????????????????????????????? | | ?????????????????????????????????????????????????? | | ?????????????????????????????????????????????????? | | ?????????????????????????????????????????????????? | | ?????????????????????????????????????????????????? | | ?????????????????????????????????????????????????? | | ?????????????????????????????????????????????????? | | ?????????????????????????????????????????????????? | | ?????????????????????????????????????????????????? | +----------------------------------------------------+ Best States ------------- Heat Dissipation 61 Energy Generation 16 Energy Capacity 290 Matter Stores 300 Matter Capacity 300 Sight Range 16 Robot Scan Range 15 Terrain Scan Range 14 Terrain Scan Density 10 ECM Strength 2 Armor Coverage 225 Resistance: KI 20 Resistance: TH 20 Resistance: EX 20 Resistance: EM 20 Resistance: I 20 Resistance: S 20 Resistance: P 20 Core Shielding 20 Propulsion Shielding 33 Utility Shielding 66 Evasion (%) 55 Targeting Accuracy 8 Melee Accuracy 5 Force Boost 20 Offensive Hacking 20 Item Schematics ----------------- None Robot Schematics ------------------ None Fabricated ------------ Nothing Alien Tech Used ----------------- None Achievements -------------- Loot Pinata Maybe Next Time I'll Detach My Launcher Unlikely Earthworm Challenges ------------ None Game ------ Seed DamperPowerSuite Manual? 0 Play Time 00:47:03 Cumulative 3.5 hours Start 2024.04.06 @ 15:16:19 End 2024.04.06 @ 16:04:45 Sessions 1 Manual Loads 0 Difficulty Adventurer Special Mode None Game No. 7 Rogue 1 Adventurer 5 Explorer 1 Win Type - Total 0 Types 0/0/0/0/0/0/0/0/0 Lore% 3 Gallery% 9 Achievement% 9 Wizard Run 0 Options --------- Layout 0 ASCII 0 Keyboard 0 Movement Arrows Keybinds 0 Fullscreen 2 Font 18/SmallcapsGlow Map View 76x50 Zoom Use 0% Tactical HUD 1 Map Filters NONE Filters NONE Steam 1 RUN: 5531e2e0-19ad-4cc4-a9bd-6eecf5786fa7